bitfinex-derivatives/quotes_SOLF0:USTF0_20251122
["timestamp","ask_amount","ask_price","bid_price","bid_amount"]
[1763782644132,0.05615456,127.19,127.15,3.17846485]
[1763782644326,0.05615456,127.19,127.15,12.96379108]
[1763782644629,0.05615456,127.19,127.16,3.12]
[1763782645020,3.28615456,127.19,127.16,3.12]
[1763782645219,3.28615456,127.19,127.15,19.77846485]
[1763782645427,0.05615456,127.19,127.16,3.12]
[1763782646332,7.13755456,127.19,127.16,3.12]
[1763782647434,0.05615456,127.19,127.16,3.12]
[1763782648032,7.0793,127.23,127.16,3.12]
[1763782648227,3.23,127.25,127.16,3.12]
[1763782648432,3.23,127.25,127.17,3.12]
[1763782648732,3.23,127.25,127.17,12.90532623]
[1763782648925,3.23,127.25,127.18,3.12]
[1763782649126,0.05205225,127.22,127.2,3.16975034]
[1763782649325,0.05205225,127.22,127.21,16.62]
[1763782649629,3.28205225,127.22,127.2,0.04975034]
[1763782649932,0.05205225,127.22,127.2,3.16975034]
[1763782650231,10.3064,127.28,127.2,10.25025034]
[1763782650430,10.3064,127.28,127.21,3.12]
[1763782650638,3.23,127.31,127.21,3.12]
[1763782651030,0.05322964,127.27,127.25,3.17292142]
[1763782651330,3.28322964,127.27,127.25,0.05292142]
[1763782651531,0.05322964,127.27,127.2,3.12]
[1763782651723,3.28322964,127.27,127.2,3.12]
[1763782652427,3.23,127.25,127.22,0.05428786]
[1763782653638,7.0787,127.24,127.22,0.05428786]
[1763782653828,7.12925234,127.24,127.22,0.05428786]
[1763782655945,3.2,127.23,127.22,0.05428786]
[1763782657141,10.42925234,127.24,127.22,0.05428786]
[1763782657538,3.3,127.23,127.22,0.05428786]
[1763782659939,3.35055234,127.24,127.22,0.05428786]
[1763782660541,10.42925234,127.24,127.22,0.05428786]
[1763782660741,3.3,127.23,127.22,0.05428786]
[1763782660948,3.3,127.21,127.15,16.62]
[1763782661143,1.63055234,127.24,127.16,3.02]
[1763782661144,3.3,127.24,127.16,3.02]
[1763782661355,3.3,127.21,127.16,3.02]
[1763782661837,3.3,127.21,127.17,0.05250986]
[1763782662037,3.3,127.19,127.17,0.05250986]
[1763782663244,3.35989277,127.2,127.17,0.05250986]
[1763782663944,10.44069277,127.2,127.17,0.05250986]
[1763782665747,3.3,127.18,127.17,0.05250986]
[1763782666748,3.3,127.17,127.1,3.02]
[1763782666949,3.3,127.17,127.1,19.66]
[1763782667549,7.083,127.16,127.1,19.66]
[1763782667756,0.05182642,127.14,127.12,3.07281646]
[1763782667951,3.3,127.19,127.12,3.07281646]
[1763782668459,7.0822,127.18,127.12,3.07281646]
[1763782668645,3.3,127.19,127.12,3.07281646]
[1763782669146,0.05161613,127.17,127.12,3.07281646]
[1763782671351,0.05161613,127.17,127.14,3.02]
[1763782671548,0.05161613,127.17,127.15,19.66]
[1763782671848,0.05161613,127.17,127.16,3.02]
[1763782672051,3.3,127.22,127.16,3.02]
[1763782672652,3.3,127.21,127.15,16.64]
[1763782672851,3.3,127.21,127.15,19.66]
[1763782673051,0.05616179,127.19,127.17,0.05538305]
[1763782673255,0.05616179,127.19,127.17,3.07538305]
[1763782673748,0.05616179,127.19,127.17,0.05538305]
[1763782676052,0.05616179,127.19,127.17,3.07538305]
[1763782677455,3.3,127.27,127.18,3.02]
[1763782677649,3.3,127.27,127.19,3.02]
[1763782677850,10.3771,127.27,127.21,3.02]
[1763782678050,3.3,127.27,127.22,3.02]
[1763782678360,3.35452392,127.26,127.23,0.05395326]
[1763782678659,3.35452392,127.26,127.23,0.05569072]
[1763782679553,0.05452392,127.26,127.23,3.07569072]
[1763782680565,3.3,127.25,127.23,0.05569072]
[1763782681654,3.3,127.24,127.23,0.05569072]
[1763782682363,4.88,127.24,127.23,0.05569072]
[1763782683564,3.3,127.24,127.23,0.05569072]
[1763782685565,3.13,127.25,127.23,0.05569072]
[1763782686260,3.13,127.24,127.23,0.05569072]
[1763782689359,3.18452392,127.26,127.23,0.05569072]
[1763782690154,10.26202392,127.26,127.23,3.23569072]
[1763782690866,3.13,127.25,127.23,0.05569072]
[1763782691561,0.05452392,127.26,127.23,3.23569072]
[1763782691758,0.05452392,127.26,127.24,3.18]
[1763782693067,6.39317243,127.31,127.24,3.18]
[1763782693265,10.2053,127.3,127.25,3.18]
[1763782693472,10.2053,127.3,127.26,19.8]
[1763782693768,3.13,127.27,127.24,3.18]
[1763782694068,3.17971952,127.27,127.24,3.23420031]
[1763782698173,0.04971952,127.27,127.24,3.23420031]
[1763782700474,3.17971952,127.27,127.24,3.23420031]
[1763782700666,3.17971952,127.27,127.24,0.05420031]
[1763782701170,10.2075,127.26,127.24,0.05420031]
[1763782702674,3.13,127.26,127.24,0.05420031]
[1763782703176,0.04971952,127.27,127.24,3.23420031]
[1763782703370,3.17971952,127.27,127.24,3.23420031]
[1763782703572,10.25661952,127.27,127.24,3.23420031]
[1763782703978,3.13,127.26,127.24,0.05420031]
[1763782704388,3.13,127.25,127.24,0.05420031]
[1763782706480,3.13,127.23,127.21,16.6]
[1763782707272,3.13,127.22,127.21,16.6]
[1763782707581,3.13,127.22,127.2,0.05651515]
[1763782708583,3.13,127.21,127.2,0.05651515]
[1763782711983,3.13,127.21,127.16,7.0824]
[1763782711984,3.13,127.19,127.16,16.6]
[1763782712777,10.2121,127.18,127.16,16.6]
[1763782712971,10.26323015,127.18,127.16,16.64980308]
[1763782713781,3.18113015,127.18,127.16,16.64980308]
[1763782715584,3.18113015,127.18,127.16,0.04980308]
[1763782716286,3.33113015,127.18,127.16,0.04980308]
[1763782716981,3.28,127.23,127.16,3.03980308]
[1763782717187,3.28,127.25,127.18,2.99]
[1763782717486,7.0786,127.24,127.19,2.99]
[1763782717681,3.28,127.23,127.19,2.99]
[1763782717985,3.33718524,127.22,127.2,0.05613947]
[1763782718491,0.05718524,127.22,127.2,3.04613947]
[1763782719775,3.28,127.21,127.2,0.05613947]
[1763782720574,7.13698524,127.22,127.15,26.38532623]
[1763782720575,3.28,127.2,127.15,26.38532623]
[1763782720783,3.28,127.2,127.15,16.6]
[1763782721575,110.21417528,127.19,127.16,0.05040666]
[1763782721780,3.33737528,127.19,127.16,3.04040666]
[1763782725894,3.28,127.18,127.16,0.05040666]
[1763782727699,110.21377528,127.19,127.16,0.05040666]
[1763782727700,0.05737528,127.19,127.16,3.04040666]
[1763782727902,3.33737528,127.19,127.16,3.04040666]
[1763782730890,10.41877528,127.19,127.16,3.04040666]
[1763782731096,10.41877528,127.19,127.16,0.05040666]
[1763782733404,10.41877528,127.19,127.16,3.04040666]
[1763782734906,3.28,127.18,127.16,3.04040666]
[1763782735100,10.41877528,127.19,127.16,3.04040666]
[1763782736710,3.28,127.18,127.16,3.04040666]
[1763782738107,3.28,127.18,127.16,0.05040666]
[1763782740605,3.28,127.17,127.16,0.05040666]
[1763782740809,5.37194604,127.17,127.16,0.05040666]
[1763782742415,0.05737528,127.19,127.16,3.04040666]
[1763782744221,0.05737528,127.19,127.16,12.82573289]
[1763782744814,3.33737528,127.19,127.17,16.6]
[1763782745610,3.33737528,127.19,127.16,0.05040666]
[1763782745611,3.1,127.18,127.16,0.05040666]
[1763782746618,10.182,127.18,127.16,0.05040666]
[1763782746819,5.19194604,127.17,127.16,0.05040666]
[1763782747316,3.1,127.17,127.16,0.05040666]
[1763782751018,3.1,127.18,127.16,3.34040666]
[1763782751625,0.05737528,127.19,127.16,3.34040666]
[1763782751626,3.15737528,127.19,127.16,3.34040666]
[1763782752023,3.15737528,127.19,127.16,13.12573289]
[1763782752215,0.05737528,127.19,127.17,3.29]
[1763782752415,0.05737528,127.19,127.17,13.07532623]
[1763782752627,0.05737528,127.19,127.18,3.29]
[1763782753025,0.05737528,127.19,127.18,19.87]
[1763782753228,0.05737528,127.19,127.18,29.65532623]
[1763782754127,3.1,127.24,127.19,3.29]
[1763782754633,3.1,127.24,127.2,3.29]
[1763782755132,0.05148445,127.23,127.21,0.04971858]
[1763782755327,3.15148445,127.23,127.21,0.04971858]
[1763782755830,10.23068445,127.23,127.21,0.04971858]
[1763782757423,3.15148445,127.23,127.21,0.04971858]
[1763782761534,0.05148445,127.23,127.21,3.33971858]
[1763782762731,3.15148445,127.23,127.21,3.33971858]
[1763782763933,0.05148445,127.23,127.21,3.33971858]
[1763782771435,3.1,127.28,127.23,3.29]
[1763782771638,3.1,127.31,127.28,3.29]
[1763782771837,3.1,127.31,127.29,16.56]
[1763782772039,3.1,127.34,127.29,19.85]
[1763782772339,3.1,127.31,127.27,19.85]
[1763782772538,0.05746885,127.3,127.28,3.34893651]
[1763782772742,3.15746885,127.3,127.28,3.34893651]
[1763782773534,3.1,127.33,127.28,3.34893651]
[1763782773734,3.1,127.33,127.28,3.29]
[1763782774541,0.04967504,127.32,127.3,3.29]
[1763782774842,0.04967504,127.32,127.31,6.54793882]
[1763782775938,3.22,127.37,127.33,6.54793882]
[1763782776638,3.22,127.37,127.34,3.29]
[1763782776942,0.05318348,127.37,127.35,6.54793882]
[1763782778736,0.05318348,127.37,127.36,3.29]
[1763782779636,10.2888,127.42,127.36,3.29]
[1763782779838,3.22,127.41,127.38,6.54793882]
[1763782780037,3.22,127.41,127.36,3.25793882]
[1763782780740,3.22,127.39,127.37,0.05862812]
[1763782783040,113.2117,127.38,127.34,3.25793882]
[1763782783249,3.22,127.36,127.32,3.25793882]
[1763782783833,3.22,127.34,127.3,23.10793882]
[1763782784038,0.05383132,127.33,127.31,0.05665829]
[1763782784237,3.27383132,127.33,127.31,0.05665829]
[1763782787550,10.34763132,127.33,127.31,0.05665829]
[1763782787751,3.22,127.32,127.31,0.05665829]
[1763782789148,3.27383132,127.33,127.31,0.05665829]
[1763782789349,0.05383132,127.33,127.31,3.34665829]
[1763782789752,3.27383132,127.33,127.31,3.34665829]
[1763782790152,0.05383132,127.33,127.31,3.34665829]
[1763782798658,0.05383132,127.33,127.32,19.83]
[1763782801164,3.27383132,127.33,127.31,0.05665829]
[1763782801563,10.34773132,127.33,127.31,0.05665829]
[1763782801966,126.5311,127.41,127.31,3.34665829]
[1763782801967,3.22,127.4,127.31,3.34665829]
[1763782802267,10.2908,127.38,127.33,3.29]
[1763782802566,3.22,127.37,127.33,3.29]
[1763782802951,0.05780952,127.36,127.34,3.33982638]
[1763782803354,0.05780952,127.36,127.35,16.54]
[1763782803561,0.05780952,127.36,127.35,19.83]
[1763782805166,0.05780952,127.36,127.35,16.54]
[1763782806168,0.05780952,127.36,127.35,19.7]
[1763782808771,3.11,127.4,127.36,3.16]
[1763782809564,3.11,127.39,127.36,19.7]
[1763782810066,3.16585406,127.39,127.36,19.75032751]
[1763782811172,3.16585406,127.39,127.36,16.59032751]
[1763782811573,3.16585406,127.39,127.36,19.75032751]
[1763782812875,3.16585406,127.39,127.37,3.16]
[1763782813068,0.05585406,127.39,127.37,3.16]
[1763782813263,3.11,127.38,127.36,16.59032751]
[1763782813978,3.11,127.38,127.36,0.05032751]
[1763782814874,3.11,127.37,127.36,0.05032751]
[1763782822180,3.11,127.37,127.31,29.48532623]
[1763782822181,3.11,127.35,127.31,29.48532623]
[1763782822383,3.11,127.34,127.31,19.7]
[1763782823287,3.16773596,127.34,127.31,19.75665096]
[1763782823683,10.24063596,127.34,127.31,19.75665096]
[1763782824987,3.11,127.33,127.31,19.75665096]
[1763782826291,3.11,127.33,127.31,29.54197719]
[1763782829097,10.24063596,127.34,127.31,29.54197719]
[1763782829893,3.11,127.33,127.31,29.54197719]
[1763782831196,7.13063596,127.34,127.31,29.54197719]
[1763782831395,10.24063596,127.34,127.31,29.54197719]
[1763782833699,10.24063596,127.34,127.32,3.16]
[1763782838103,3.26,127.32,127.31,16.59665096]
[1763782838298,3.26,127.32,127.27,3.02]
[1763782838598,5.34443104,127.35,127.29,3.02]
[1763782838797,5.34443104,127.31,127.27,17.59461759]
[1763782839004,3.26,127.3,127.26,3.02]
[1763782839296,3.31131648,127.29,127.27,0.05792161]
[1763782839702,5.39574752,127.29,127.27,0.05792161]
[1763782840202,12.47164752,127.29,127.27,0.05792161]
[1763782843705,3.26,127.28,127.27,0.05792161]
[1763782844901,7.12721648,127.29,127.27,3.07792161]
[1763782845500,10.38721648,127.29,127.27,3.07792161]
[1763782848008,3.31131648,127.29,127.27,3.07792161]
[1763782853108,0.05131648,127.29,127.27,3.07792161]
[1763782853312,3.26,127.28,127.27,0.05792161]
[1763782859814,0.05131648,127.29,127.27,3.07792161]
[1763782861713,0.05131648,127.29,127.28,19.56]
[1763782862016,3.26,127.33,127.29,3.02]
[1763782862726,109.9867,127.39,127.29,3.02]
[1763782862727,3.26,127.39,127.31,3.02]
[1763782863016,3.26,127.35,127.31,19.56]
[1763782863914,3.31239336,127.34,127.32,0.05557087]
[1763782865217,3.26,127.32,127.27,3.02]
[1763782865414,3.26,127.31,127.27,3.02]
[1763782866210,3.0568777,127.3,127.28,0.06007222]
[1763782866714,10.1321777,127.3,127.28,0.06007222]
[1763782869119,10.1321777,127.3,127.28,3.32007222]
[1763782870320,10.1321777,127.3,127.28,5.40450326]
[1763782871924,0.0568777,127.3,127.28,3.32007222]
[1763782872219,0.0568777,127.3,127.29,3.26]
[1763782872423,0.0568777,127.3,127.29,13.03051517]
[1763782872718,3.0,127.34,127.29,13.03051517]
[1763782872921,3.0,127.34,127.3,19.8]
[1763782873127,3.0,127.34,127.3,29.57051517]
[1763782873325,3.0,127.34,127.31,3.26]
[1763782874120,3.05982711,127.34,127.31,3.31328087]
[1763782876721,3.05982711,127.34,127.31,0.05328087]
[1763782876722,3.0,127.33,127.31,0.05328087]
[1763782877623,3.0,127.32,127.31,0.05328087]
[1763782879125,3.0,127.3,127.27,9.77051517]
[1763782879915,3.0,127.3,127.27,13.03051517]
[1763782880119,3.05070224,127.3,127.27,13.08342325]
[1763782880624,10.12600224,127.3,127.27,13.08342325]
[1763782882630,3.0,127.29,127.27,13.08342325]
[1763782885334,0.05070224,127.3,127.28,3.26]
[1763782885524,0.05070224,127.3,127.28,13.03051517]
[1763782885725,0.05070224,127.3,127.29,3.26]
[1763782886339,3.05070224,127.3,127.28,9.77051517]
[1763782887028,3.0,127.29,127.28,9.77051517]
[1763782887228,3.0,127.29,127.27,9.82342325]
[1763782887532,3.0,127.29,127.27,13.08342325]
[1763782888030,0.05070224,127.3,127.28,3.26]
[1763782888031,3.05070224,127.3,127.28,3.26]
[1763782889834,10.12590224,127.3,127.28,3.26]
[1763782890837,3.05070224,127.3,127.28,3.26]
[1763782891135,0.05070224,127.3,127.28,3.26]
[1763782891631,0.05070224,127.3,127.29,3.26]
[1763782891833,0.05070224,127.3,127.29,13.03051517]
[1763782893035,0.05070224,127.3,127.29,6.52001798]
[1763782893824,0.05070224,127.3,127.29,3.26]
[1763782894031,0.05070224,127.3,127.29,6.52001798]
[1763782897135,0.05070224,127.3,127.29,23.06001798]
[1763782898843,0.05070224,127.3,127.29,19.8]
[1763782901741,3.18070224,127.3,127.29,26.32414628]
[1763782902042,0.05070224,127.3,127.29,29.58414628]
[1763782903542,0.05070224,127.3,127.29,19.8]
[1763782906843,0.05070224,127.3,127.29,34.37461759]
[1763782908137,10.2031,127.34,127.3,3.26]
[1763782908438,10.2031,127.34,127.31,13.04825638]
[1763782908845,3.13,127.33,127.31,13.04825638]
[1763782909146,3.17944739,127.33,127.31,13.10374668]
[1763782909641,0.04944739,127.33,127.32,3.26]
[1763782909845,3.17944739,127.33,127.31,13.10374668]
[1763782910943,0.04944739,127.33,127.32,3.26]
[1763782911344,0.04944739,127.33,127.32,13.04825638]
[1763782913345,0.04944739,127.33,127.32,3.26]
[1763782915942,3.17944739,127.33,127.31,9.84374668]
[1763782916454,10.25294739,127.33,127.31,9.84374668]
[1763782916752,10.25294739,127.33,127.31,13.10374668]
[1763782917154,10.25294739,127.33,127.31,3.3154903]
[1763782917953,3.13,127.32,127.31,0.0554903]
[1763782919956,10.25294739,127.33,127.31,3.3154903]
[1763782922558,3.13,127.32,127.31,0.0554903]
[1763782925863,10.3563,127.28,127.25,9.78825638]
[1763782926063,3.28,127.27,127.24,12.83825638]
[1763782926865,3.32994881,127.27,127.24,12.89845153]
[1763782927266,3.28,127.26,127.24,9.84845153]
[1763782927968,3.28,127.25,127.24,0.06019515]
[1763782930668,3.28,127.25,127.24,0.00019515]
[1763782932868,10.3576,127.26,127.24,0.00019515]
[1763782933567,3.28,127.26,127.24,0.00019515]
[1763782933772,0.04994881,127.27,127.24,3.05019515]
[1763782934073,0.04994881,127.27,127.24,10.12849515]
[1763782934267,0.04994881,127.27,127.25,3.05]
[1763782936872,0.04994881,127.27,127.25,5.1372729]
[1763782938074,0.04994881,127.27,127.26,3.05]
[1763782941878,10.3549,127.31,127.26,3.05]
[1763782942077,3.28,127.32,127.28,3.05]
[1763782943179,3.33298738,127.31,127.29,0.04972725]
[1763782945281,10.40768738,127.31,127.29,0.04972725]
[1763782946576,3.28,127.3,127.29,0.04972725]
[1763782946882,10.40768738,127.31,127.29,0.04972725]
[1763782948978,3.28,127.3,127.29,0.04972725]
[1763782949779,3.28,127.3,127.25,3.05]
[1763782949780,3.28,127.28,127.25,3.05]
[1763782949974,3.28,127.28,127.24,3.05]
[1763782950380,3.28,127.28,127.23,16.54]
[1763782950381,3.28,127.26,127.23,19.59]
[1763782950886,3.33192346,127.26,127.23,19.64180839]
[1763782951084,3.28,127.25,127.23,16.59180839]
[1763782951278,3.28,127.25,127.23,19.64180839]
[1763782951681,3.28,127.25,127.23,16.59180839]
[1763782952486,3.28,127.24,127.23,0.05180839]
[1763782959390,3.3,127.25,127.23,3.14180839]
[1763782960292,3.3,127.25,127.23,0.05180839]
[1763782960695,10.378,127.25,127.23,0.05180839]
[1763782962691,3.3,127.24,127.23,0.05180839]
[1763782963389,0.05192346,127.26,127.23,3.14180839]
[1763782965095,3.35192346,127.26,127.23,3.14180839]
[1763782966096,3.35192346,127.26,127.24,16.54]
[1763782966300,3.35192346,127.26,127.24,19.63]
[1763782966997,3.35192346,127.26,127.24,16.54]
[1763782967795,3.35192346,127.26,127.23,12.93006477]
[1763782970103,3.35192346,127.26,127.24,9.78825638]
[1763782970893,3.35192346,127.26,127.24,12.87825638]
[1763782971095,0.05192346,127.26,127.25,3.09]
[1763782975201,3.3,127.29,127.26,3.09]
[1763782976097,0.05660017,127.29,127.26,3.1456567]
[1763782976302,3.35660017,127.29,127.26,3.1456567]
[1763782977603,3.35660017,127.29,127.26,0.0556567]
[1763782977802,3.35660017,127.29,127.26,3.1456567]
[1763782982909,3.3,127.28,127.26,3.1456567]
[1763782985515,3.36660017,127.29,127.26,3.1456567]
[1763782987410,0.05660017,127.29,127.27,3.25]
[1763782987808,3.31,127.28,127.26,13.09391308]
[1763782988008,3.31,127.28,127.26,0.0556567]
[1763782989212,3.31,127.28,127.26,3.3056567]
[1763782989712,10.3864,127.28,127.26,3.3056567]
[1763782990614,3.31,127.28,127.26,3.3056567]
[1763782992918,3.31,127.28,127.22,2.0872729]
[1763782992919,3.31,127.27,127.24,9.78825638]
[1763782993110,3.31,127.27,127.23,13.03825638]
[1763782993911,3.36991234,127.26,127.24,0.06035127]
[1763782994318,10.44731234,127.26,127.24,0.06035127]
[1763782994511,3.31,127.25,127.24,0.06035127]
[1763782998317,7.13731234,127.26,127.24,3.31035127]
[1763782998318,0.05991234,127.26,127.24,3.31035127]
[1763782998621,0.05991234,127.26,127.25,3.25]
[1763783002119,0.05991234,127.26,127.25,13.03825638]
[1763783002321,3.36991234,127.26,127.25,9.78825638]
[1763783003524,0.05991234,127.26,127.25,9.78825638]
[1763783004123,0.05991234,127.26,127.25,13.03825638]
[1763783006934,3.36991234,127.26,127.25,9.78825638]
[1763783007133,3.36991234,127.26,127.24,9.84860765]
[1763783007426,3.36991234,127.26,127.24,0.06035127]
[1763783007831,3.31,127.25,127.24,0.06035127]
[1763783011531,3.31,127.23,127.21,16.54]
[1763783012227,3.31,127.22,127.18,9.78825638]
[1763783012430,3.31,127.22,127.17,3.25]
[1763783012628,3.31,127.2,127.18,0.05990833]
[1763783015841,10.3909,127.2,127.18,0.05990833]
[1763783016043,3.16,127.19,127.18,0.05990833]
[1763783018638,3.16,127.17,127.15,16.54]
[1763783019531,3.16,127.16,127.15,16.54]
[1763783019734,3.16,127.16,127.15,0.05795827]
[1763783022942,0.05768861,127.17,127.15,3.06795827]
[1763783023143,3.21768861,127.17,127.15,3.06795827]
[1763783023444,3.21768861,127.17,127.15,0.05795827]
[1763783026551,10.30018861,127.17,127.15,0.05795827]
[1763783026753,3.16,127.16,127.15,0.05795827]
[1763783032162,3.21768861,127.17,127.15,3.06795827]
[1763783032558,10.30008861,127.17,127.15,0.05795827]
[1763783032759,3.16,127.16,127.15,0.05795827]
[1763783050488,10.3617,127.19,127.15,3.23795827]
[1763783051279,7.0805,127.21,127.16,3.18]
[1763783051482,3.28,127.2,127.17,0.05823715]
[1763783051690,3.33365164,127.2,127.17,3.23823715]
[1763783052487,3.33365164,127.2,127.18,3.18]
[1763783057690,0.05365164,127.2,127.18,3.18]
[1763783057891,3.33365164,127.2,127.18,3.18]
[1763783060392,3.33365164,127.2,127.18,12.96825638]
[1763783061279,3.28,127.23,127.19,3.18]
[1763783061486,3.28,127.23,127.2,3.18]
[1763783061791,3.28,127.26,127.21,3.18]
[1763783062492,3.28,127.24,127.22,3.23048755]
[1763783063088,3.33347156,127.25,127.22,3.23048755]
[1763783063886,3.28,127.23,127.22,0.05048755]
[1763783065794,10.3586,127.24,127.22,3.23048755]
[1763783066094,10.3586,127.24,127.22,0.05048755]
[1763783066293,3.28,127.23,127.22,0.05048755]
[1763783066891,10.3586,127.24,127.22,0.05048755]
[1763783068100,3.28,127.23,127.22,0.05048755]
[1763783068595,5.36989037,127.23,127.22,0.05048755]
[1763783080104,110.1377,127.21,127.16,9.78825638]
[1763783080405,3.24,127.21,127.16,3.17]
[1763783080606,3.24,127.21,127.17,3.17]
[1763783080903,3.24,127.2,127.17,3.17]
[1763783081102,3.29056712,127.2,127.17,3.22970512]
[1763783082194,10.37136712,127.2,127.17,3.22970512]
[1763783083203,3.29056712,127.2,127.17,3.22970512]
[1763783085307,3.29056712,127.2,127.17,13.0179615]
[1763783085308,0.05056712,127.2,127.17,13.0179615]
[1763783085505,0.05056712,127.2,127.19,3.17]
[1763783085706,3.24,127.23,127.19,12.95825638]
[1763783086007,3.24,127.23,127.19,3.17]
[1763783086609,3.24,127.21,127.2,0.05284213]
[1763783090011,0.05664869,127.22,127.2,3.22284213]
[1763783090407,0.05664869,127.22,127.21,3.17]
[1763783091104,3.24,127.27,127.21,3.17]
[1763783091310,3.24,127.27,127.22,3.17]
[1763783092115,3.24,127.27,127.23,3.17]
[1763783092317,3.24,127.26,127.22,12.95825638]
[1763783092513,3.29016132,127.26,127.24,0.0506428]
[1763783092815,3.24,127.25,127.2,9.78825638]
[1763783093015,3.24,127.23,127.19,12.95825638]
[1763783093812,0.05822494,127.22,127.2,0.05534496]
[1763783094014,3.29822494,127.22,127.2,0.05534496]
[1763783094211,3.29822494,127.22,127.2,9.84360134]
[1763783094608,3.29822494,127.22,127.2,13.01360134]
[1763783095814,3.29822494,127.22,127.2,9.84360134]
[1763783096317,3.29822494,127.22,127.2,13.01360134]
[1763783098217,0.05822494,127.22,127.21,3.17]
[1763783098519,3.29822494,127.22,127.2,13.01360134]
[1763783100519,0.05822494,127.22,127.2,13.01360134]
[1763783101018,0.05822494,127.22,127.21,3.17]
[1763783102615,0.05822494,127.22,127.21,9.79433262]
[1763783102816,0.05822494,127.22,127.2,13.01967758]
[1763783103415,3.29822494,127.22,127.2,13.01967758]
[1763783103616,3.24,127.21,127.2,0.05534496]
[1763783104112,3.24,127.19,127.16,9.79433262]
[1763783104315,220.2972,127.2,127.15,14.57461759]
[1763783104316,3.24,127.17,127.15,9.79433262]
[1763783105207,3.29104333,127.17,127.15,13.0194502]
[1763783105411,3.29104333,127.17,127.15,3.22511758]
[1763783105622,3.29104333,127.17,127.15,0.05511758]
[1763783106523,10.37354333,127.17,127.15,0.05511758]
[1763783107221,3.04,127.16,127.15,0.05511758]
[1763783110927,10.17354333,127.17,127.15,3.05511758]
[1763783111313,3.04,127.16,127.15,0.05511758]
[1763783114515,0.05104333,127.17,127.15,3.05511758]
[1763783115218,0.05104333,127.17,127.16,3.0]
[1763783116223,3.04,127.21,127.17,3.0]
[1763783117328,0.05768206,127.2,127.18,3.04991261]
[1763783117720,3.09768206,127.2,127.18,0.04991261]
[1763783118930,3.09768206,127.2,127.18,3.04991261]
[1763783119428,0.05768206,127.2,127.19,3.0]
[1763783120333,10.1191,127.23,127.19,3.0]
[1763783120524,3.04,127.23,127.19,3.0]
[1763783121325,0.05888819,127.22,127.19,3.0]
[1763783121935,0.05888819,127.22,127.2,3.0]
[1763783122436,3.09888819,127.22,127.19,9.79433262]
[1763783122633,3.04,127.2,127.18,0.04991261]
[1763783123240,10.1209,127.2,127.18,0.04991261]
[1763783124030,3.04,127.19,127.18,0.04991261]
[1763783124737,3.04,127.17,127.11,9.79433262]
[1763783125436,3.04,127.14,127.11,12.79433262]
[1763783125837,0.05818121,127.14,127.12,3.0]
[1763783126038,0.05818121,127.14,127.13,3.0]
[1763783128742,3.09818121,127.14,127.12,16.54]
[1763783132138,3.09818121,127.14,127.11,0.05582467]
[1763783132334,3.09818121,127.14,127.11,3.05582467]
[1763783136742,3.06,127.12,127.11,0.05582467]
[1763783137042,10.1448,127.13,127.11,0.05582467]
[1763783138444,3.06,127.12,127.11,0.05582467]
[1763783140941,7.0848,127.13,127.11,0.05582467]
[1763783141146,0.05818121,127.14,127.11,3.21582467]
[1763783141147,3.11818121,127.14,127.11,3.21582467]
[1763783141548,0.05818121,127.14,127.11,3.21582467]
[1763783141949,0.05818121,127.14,127.11,19.75582467]
[1763783142140,0.05818121,127.14,127.12,3.16]
[1763783143146,3.11818121,127.14,127.12,3.16]
[1763783149154,3.11818121,127.14,127.11,19.75582467]
[1763783149652,3.11818121,127.14,127.12,3.16]
[1763783150453,110.1667,127.18,127.14,3.16]
[1763783150454,3.06,127.18,127.14,3.16]
[1763783150655,113.40550347,127.21,127.14,3.16]
[1763783150656,3.06,127.21,127.17,3.16]
[1763783150859,3.06,127.24,127.19,3.16]
[1763783151256,3.06,127.24,127.17,9.79433262]
[1763783151257,3.06,127.22,127.17,9.79433262]
[1763783151461,3.06,127.2,127.18,0.05198965]
[1763783152164,0.05953941,127.21,127.18,3.21198965]